bitfinex-derivatives/quotes_SOLF0:USTF0_20260127
["timestamp","ask_amount","ask_price","bid_price","bid_amount"]
[1769531986803,5.90251081,126.65,126.6,7.1164]
[1769531987301,66.00689332,126.66,126.6,7.1164]
[1769531987505,5.90422923,126.65,126.6,7.1164]
[1769531990310,70.04577002,126.65,126.6,7.1164]
[1769531990509,64.14154079,126.65,126.6,7.1164]
[1769531991906,5.90567793,126.64,126.6,7.1164]
[1769531992103,71.91257125,126.64,126.58,69.61030628]
[1769531992406,66.00689332,126.64,126.56,71.47565881]
[1769531992608,70.04802667,126.63,126.56,71.47565881]
[1769531992806,64.14154079,126.63,126.56,71.47565881]
[1769531993202,71.91384833,126.62,126.54,182.22385881]
[1769531993501,66.00689332,126.62,126.54,182.22385881]
[1769531993806,64.14154079,126.62,126.55,182.21745881]
[1769531994009,1.86535253,126.63,126.56,182.20875881]
[1769531994203,71.95508122,126.64,126.56,110.7331]
[1769531994405,1.86535253,126.61,126.55,68.26509415]
[1769531995002,70.79366898,126.61,126.55,68.26509415]
[1769531995711,1.86535253,126.62,126.57,7.118]
[1769531995911,7.81085691,126.62,126.57,7.118]
[1769531996513,5.94550438,126.62,126.57,7.118]
[1769531997613,315.38,126.67,126.58,70.13044668]
[1769531997614,70.79366898,126.66,126.58,70.13044668]
[1769531997909,5.94449292,126.65,126.59,68.26509415]
[1769531998101,1.86535253,126.66,126.61,7.1158]
[1769531998412,70.79366898,126.66,126.59,68.26509415]
[1769531998608,7.80873451,126.65,126.59,68.26509415]
[1769531998908,76.73705096,126.65,126.57,180.85354668]
[1769531999112,5.94338198,126.64,126.57,180.85354668]
[1769531999409,5.94338198,126.64,126.6,7.1162]
[1769531999712,70.79366898,126.65,126.6,7.1162]
[1769531999912,5.94455206,126.64,126.57,70.13044668]
[1769532000109,1.86535253,126.63,126.57,68.26509415]
[1769532000312,70.79366898,126.61,126.55,68.26509415]
[1769532000515,70.79366898,126.63,126.56,68.26509415]
[1769532000816,74.87391698,126.62,126.53,179.02229415]
[1769532001013,68.92831645,126.6,126.53,70.13044668]
[1769532001311,1.86535253,126.61,126.53,70.13044668]
[1769532001610,1.86535253,126.61,126.55,7.1191]
[1769532001914,70.79366898,126.61,126.55,7.1191]
[1769532002114,5.9442696,126.6,126.55,7.1191]
[1769532002317,5.9442696,126.6,126.56,7.1186]
[1769532002508,70.79366898,126.63,126.56,7.1186]
[1769532002714,68.92831645,126.63,126.57,70.13044668]
[1769532002914,70.79366898,126.65,126.57,70.13044668]
[1769532003111,5.94110265,126.64,126.57,70.13044668]
[1769532003313,5.94110265,126.64,126.58,68.26509415]
[1769532003510,68.92831645,126.65,126.58,68.26509415]
[1769532004016,1.86535253,126.66,126.6,7.1164]
[1769532004317,1.86535253,126.66,126.59,70.13044668]
[1769532004318,5.9408943,126.66,126.59,70.13044668]
[1769532004707,5.9408943,126.66,126.61,7.1156]
[1769532004907,1.86535253,126.7,126.63,70.13044668]
[1769532005417,70.79366898,126.7,126.63,70.13044668]
[1769532005609,68.92831645,126.7,126.63,68.26509415]
[1769532005815,68.92831645,126.7,126.63,178.93669415]
[1769532006913,6.01003751,126.71,126.65,68.26509415]
[1769532007320,74.93835396,126.71,126.63,178.93669415]
[1769532007621,6.01003751,126.71,126.64,68.26509415]
[1769532008121,74.93835396,126.71,126.64,68.26509415]
[1769532009021,68.92831645,126.7,126.61,68.26509415]
[1769532010020,68.92831645,126.69,126.61,75.38039415]
[1769532010220,68.92831645,126.69,126.61,68.26509415]
[1769532010815,68.92831645,126.69,126.63,7.1146]
[1769532012018,6.01003751,126.71,126.64,7.1141]
[1769532012218,6.01003751,126.71,126.64,68.26509415]
[1769532012424,6.01003751,126.71,126.65,68.26509415]
[1769532012919,68.92831645,126.76,126.66,68.26509415]
[1769532013224,68.92831645,126.76,126.67,68.26509415]
[1769532013425,110.5415,126.79,126.67,68.26509415]
[1769532013426,68.92831645,126.79,126.7,68.26509415]
[1769532013719,68.92831645,126.79,126.69,68.26509415]
[1769532013920,68.92831645,126.77,126.69,68.26509415]
[1769532014115,68.92831645,126.77,126.66,68.26509415]
[1769532014423,110.5458,126.78,126.66,68.26509415]
[1769532014424,68.92831645,126.75,126.66,68.26509415]
[1769532015023,68.92831645,126.75,126.67,7.1123]
[1769532015220,76.03661645,126.75,126.66,68.26509415]
[1769532015522,73.50412782,126.73,126.61,178.94909415]
[1769532015711,68.92831645,126.7,126.61,68.26509415]
[1769532016623,76.03931645,126.7,126.61,75.38079415]
[1769532017218,68.92831645,126.68,126.59,178.97099415]
[1769532017415,68.92831645,126.68,126.6,68.26509415]
[1769532017609,68.92831645,126.68,126.62,7.115]
[1769532017810,68.92831645,126.71,126.62,7.115]
[1769532018425,68.92831645,126.71,126.63,68.26509415]
[1769532018626,68.92831645,126.75,126.63,68.26509415]
[1769532019117,7.1089,126.74,126.64,7.1139]
[1769532019316,68.92831645,126.73,126.63,68.26509415]
[1769532019517,68.92831645,126.73,126.61,178.95449415]
[1769532020723,68.92831645,126.73,126.62,7.115]
[1769532020724,68.92831645,126.7,126.62,7.115]
[1769532020926,68.92831645,126.7,126.59,178.97099415]
[1769532021225,68.92831645,126.7,126.6,68.26509415]
[1769532021423,68.92831645,126.68,126.6,7.1162]
[1769532021620,68.92831645,126.68,126.58,110.7156]
[1769532021817,68.92831645,126.7,126.6,68.26509415]
[1769532022023,68.92831645,126.7,126.61,68.26509415]
[1769532022322,68.92831645,126.7,126.62,7.1151]
[1769532024028,76.03921645,126.7,126.62,7.1151]
[1769532025621,425.8732,126.73,126.6,7.116]
[1769532025622,64.52791105,126.69,126.6,7.116]
[1769532025919,64.52791105,126.69,126.58,69.56270792]
[1769532026125,64.52791105,126.67,126.58,69.56270792]
[1769532026427,64.52791105,126.67,126.59,7.1169]
[1769532026428,71.64041105,126.67,126.59,7.1169]
[1769532026829,64.52791105,126.67,126.58,69.56270792]
[1769532027323,64.52791105,126.65,126.58,76.68020792]
[1769532027625,64.52791105,126.65,126.58,7.1175]
[1769532028024,4.57581137,126.68,126.58,69.56270792]
[1769532028323,69.10372242,126.68,126.58,69.56270792]
[1769532028920,69.10372242,126.68,126.6,7.1164]
[1769532028921,76.21582242,126.68,126.6,7.1164]
[1769532029317,69.10372242,126.68,126.6,7.1164]
[1769532029720,69.10372242,126.68,126.61,7.1158]
[1769532029922,64.52791105,126.68,126.6,69.56270792]
[1769532031930,64.52791105,126.68,126.61,7.1158]
[1769532032922,64.52791105,126.68,126.62,7.1153]
[1769532033126,71.63991105,126.68,126.61,69.56270792]
[1769532033523,64.52791105,126.68,126.58,69.56270792]
[1769532033731,64.52791105,126.66,126.58,69.56270792]
[1769532034929,64.52791105,126.66,126.6,7.1163]
[1769532035722,64.52791105,126.66,126.58,76.67990792]
[1769532035933,64.52791105,126.66,126.58,69.56270792]
[1769532036134,64.52791105,126.69,126.6,69.56270792]
[1769532037030,64.52791105,126.69,126.61,69.56270792]
[1769532039030,71.63931105,126.69,126.63,7.1147]
[1769532039436,71.63931105,126.69,126.61,69.56270792]
[1769532039736,71.63931105,126.69,126.62,7.1153]
[1769532041235,71.64041105,126.67,126.6,7.1164]
[1769532042442,64.52791105,126.67,126.61,7.1156]
[1769532042737,64.52791105,126.7,126.61,69.56270792]
[1769532042930,71.63871105,126.7,126.63,7.1147]
[1769532044932,71.63931105,126.69,126.63,7.1147]
[1769532045742,71.63931105,126.69,126.61,76.67810792]
[1769532045942,71.63991105,126.68,126.61,76.67810792]
[1769532046143,64.52791105,126.68,126.59,7.1165]
[1769532046642,64.52791105,126.68,126.59,69.56270792]
[1769532047929,7.113,126.66,126.6,7.1164]
[1769532048837,71.64041105,126.68,126.6,7.1164]
[1769532049340,64.52791105,126.68,126.6,7.1164]
[1769532050442,115.19211137,126.7,126.61,7.1157]
[1769532050443,71.64061105,126.67,126.61,7.1157]
[1769532050635,64.52791105,126.67,126.61,7.1157]
[1769532052142,71.64051105,126.67,126.59,76.67920792]
[1769532052333,64.52791105,126.67,126.59,7.1165]
[1769532052941,71.64151105,126.66,126.59,7.1165]
[1769532056744,7.1136,126.65,126.59,7.1165]
[1769532057648,64.52791105,126.66,126.55,67.07655509]
[1769532058649,64.52791105,126.66,126.58,7.1175]
[1769532059049,76.27746015,126.64,126.57,67.07655509]
[1769532059247,69.16296015,126.64,126.55,67.07655509]
[1769532059647,69.16296015,126.62,126.55,67.07655509]
[1769532059848,69.16296015,126.62,126.52,67.07655509]
[1769532060043,115.22081137,126.67,126.52,67.07655509]
[1769532060044,69.16296015,126.64,126.55,67.07655509]
[1769532060247,76.27716015,126.64,126.56,7.1186]
[1769532060448,76.27716015,126.64,126.56,74.19515509]
[1769532060958,76.27786015,126.63,126.56,67.07655509]
[1769532061853,69.16296015,126.63,126.56,67.07655509]
[1769532062046,7.1141,126.65,126.56,67.07655509]
[1769532062047,76.27706015,126.65,126.56,67.07655509]
[1769532062452,69.16296015,126.63,126.55,7.1188]
[1769532062849,69.16296015,126.63,126.55,67.07655509]
[1769532063055,69.16296015,126.63,126.56,67.07655509]
[1769532063551,69.16296015,126.66,126.56,67.07655509]
[1769532064857,69.16296015,126.63,126.56,67.07655509]
[1769532065062,7.1144,126.64,126.56,67.07655509]
[1769532065356,76.27736015,126.64,126.56,67.07655509]
[1769532065545,76.27736015,126.64,126.56,74.19515509]
[1769532066548,69.16296015,126.63,126.53,67.07655509]
[1769532066946,76.27826015,126.62,126.54,74.19625509]
[1769532067859,76.27826015,126.62,126.51,110.7767]
[1769532067860,69.16296015,126.61,126.51,67.07655509]
[1769532068953,69.16296015,126.61,126.52,74.19715509]
[1769532069264,69.16296015,126.61,126.52,67.07655509]
[1769532069762,7.1171,126.59,126.52,74.19745509]
[1769532070058,76.27886015,126.61,126.54,74.19625509]
[1769532072165,7.1165,126.6,126.54,67.07655509]
[1769532074163,76.27886015,126.61,126.54,74.19625509]
[1769532076060,76.27886015,126.61,126.55,7.1191]
[1769532076364,69.16296015,126.63,126.55,67.07655509]
[1769532076757,69.16296015,126.63,126.56,7.1186]
[1769532077656,69.16296015,126.63,126.55,67.07655509]
[1769532077657,76.27826015,126.62,126.55,67.07655509]
[1769532078162,69.16296015,126.62,126.55,67.07655509]
[1769532078857,69.16296015,126.62,126.56,7.1185]
[1769532079359,76.27836015,126.62,126.55,74.19575509]
[1769532079964,76.27886015,126.61,126.52,67.07655509]
[1769532080464,69.16296015,126.61,126.55,7.1191]
[1769532080759,69.16296015,126.61,126.55,74.19565509]
[1769532080972,69.16296015,126.63,126.55,67.07655509]
[1769532081460,76.27826015,126.63,126.56,7.1185]
[1769532081663,76.27826015,126.63,126.53,67.07655509]
[1769532081664,69.16296015,126.63,126.53,67.07655509]
[1769532082968,70.84172472,126.62,126.54,72.4227178]
[1769532084165,70.84172472,126.62,126.55,7.1192]
[1769532084866,72.49781921,126.61,126.54,65.3035178]
[1769532085464,72.49841921,126.6,126.52,66.55801864]
[1769532086266,65.38191921,126.6,126.53,66.55801864]
[1769532086463,65.38191921,126.62,126.53,66.55801864]
[1769532087264,65.38191921,126.62,126.56,7.1186]
[1769532089773,72.49721921,126.62,126.55,66.55801864]
[1769532090967,72.49721921,126.62,126.55,73.67721864]
[1769532091168,72.49651921,126.64,126.55,66.55801864]
[1769532091564,72.49651921,126.64,126.57,7.1181]
[1769532091771,72.49671921,126.63,126.55,66.55801864]
[1769532092370,72.49671921,126.63,126.57,7.1181]
[1769532092775,65.38191921,126.63,126.57,7.1181]
[1769532092970,65.38191921,126.63,126.53,110.7589]
[1769532092971,7.1141,126.65,126.58,73.67541864]
[1769532093176,65.38191921,126.66,126.58,66.55801864]
[1769532093475,72.49501921,126.66,126.58,66.55801864]
[1769532093671,110.6181,126.7,126.59,66.55801864]
[1769532093978,65.38191921,126.69,126.59,66.55801864]
[1769532094876,65.38191921,126.67,126.61,7.1157]
[1769532097778,65.38191921,126.67,126.61,73.67371864]
[1769532098074,65.38191921,126.69,126.62,7.1153]
[1769532101081,72.49331921,126.69,126.62,7.1153]
[1769532101473,72.49331921,126.69,126.62,73.67331864]
[1769532102577,65.38191921,126.69,126.64,7.1139]
[1769532102777,65.38191921,126.71,126.64,66.55801864]
[1769532102973,65.38191921,126.73,126.64,66.55801864]
[1769532103577,67.24526165,126.73,126.65,68.42136108]
[1769532103978,67.24526165,126.73,126.67,7.1124]
[1769532105382,67.24526165,126.73,126.67,73.67041864]
[1769532105779,67.24526165,126.73,126.68,7.1119]
[1769532106780,67.24526165,126.73,126.67,7.1125]
[1769532106985,67.24526165,126.71,126.63,68.42136108]
[1769532107583,110.5633,126.76,126.63,7.1142]
[1769532107584,67.24526165,126.69,126.63,7.1142]
[1769532107980,67.24526165,126.69,126.61,68.42136108]
[1769532108280,67.24526165,126.69,126.61,66.55801864]
[1769532109087,67.24526165,126.67,126.62,7.1153]
[1769532109390,67.24526165,126.65,126.59,66.55801864]
[1769532109585,65.38191921,126.65,126.57,66.55801864]
[1769532109784,65.38191921,126.65,126.57,73.67581864]
[1769532110589,65.38191921,126.65,126.58,7.1174]
[1769532111591,65.38191921,126.65,126.59,7.1169]
[1769532114782,65.16977881,126.68,126.6,60.18854445]
[1769532115091,4.58140603,126.71,126.62,60.18854445]
[1769532115092,65.16977881,126.71,126.62,60.18854445]
[1769532115391,65.16977881,126.71,126.62,64.76995048]
[1769532115594,65.16977881,126.71,126.63,60.18854445]
[1769532116079,65.16977881,126.71,126.63,170.86024445]
[1769532116285,65.16977881,126.71,126.64,60.18854445]
[1769532116588,72.27877881,126.74,126.67,7.1123]
[1769532116794,65.16977881,126.74,126.67,7.1123]
[1769532116983,65.16977881,126.74,126.65,60.18854445]
[1769532117895,72.27847881,126.74,126.66,7.1129]
[1769532118087,72.27847881,126.74,126.66,67.30144445]
[1769532118592,65.16977881,126.74,126.66,60.18854445]
[1769532119589,65.16977881,126.74,126.68,7.1117]
[1769532120092,65.16977881,126.74,126.69,7.1113]
[1769532120296,65.16977881,126.74,126.67,60.18854445]
[1769532120598,65.16977881,126.74,126.68,7.1119]
[1769532120791,65.16977881,126.74,126.64,110.6618]
[1769532120999,65.16977881,126.74,126.64,170.85034445]
[1769532121700,72.27837881,126.74,126.67,7.1124]
[1769532122197,65.16977881,126.7,126.64,7.1139]
[1769532124707,65.16977881,126.7,126.62,7.1148]
[1769532124915,65.16977881,126.7,126.59,60.18854445]
[1769532125920,65.16977881,126.69,126.59,60.18854445]
[1769532126210,65.16977881,126.69,126.57,110.7242]
[1769532126211,65.16977881,126.69,126.57,170.91274445]
[1769532126409,65.16977881,126.69,126.59,60.18854445]
[1769532127112,65.16977881,126.67,126.59,60.18854445]
[1769532127908,65.16977881,126.67,126.6,7.1163]
[1769532128104,65.16977881,126.67,126.57,60.18854445]
[1769532128809,65.16977881,126.67,126.55,60.18854445]
[1769532129010,7.1137,126.65,126.56,7.1182]
[1769532129221,65.16977881,126.64,126.56,7.1182]
[1769532130118,72.28397881,126.64,126.57,7.1181]
[1769532130315,65.16977881,126.64,126.55,60.18854445]
[1769532132021,72.28397881,126.64,126.55,60.18854445]
[1769532132910,72.28397881,126.64,126.54,110.7496]
[1769532132911,65.16977881,126.62,126.51,430.63568301]
[1769532133220,65.16977881,126.62,126.53,60.18854445]
[1769532133619,65.16977881,126.62,126.55,7.1188]
[1769532134321,72.28517881,126.62,126.55,7.1188]
[1769532135615,110.6595,126.65,126.53,67.30884445]
[1769532135616,72.28587881,126.61,126.53,67.30884445]
[1769532137922,65.16977881,126.65,126.56,60.18854445]
[1769532138722,72.28517881,126.62,126.54,4.58298301]
[1769532138924,72.28517881,126.62,126.54,64.77152746]
[1769532139416,7.116,126.61,126.54,60.18854445]
[1769532139622,72.28577881,126.61,126.54,60.18854445]
[1769532139825,65.16977881,126.61,126.51,60.18854445]
[1769532140222,72.28637881,126.6,126.53,7.1204]
[1769532140917,7.1171,126.59,126.53,7.1204]
[1769532141123,65.16977881,126.6,126.53,7.1204]
[1769532141824,65.16977881,126.6,126.54,7.1198]
[1769532145523,65.16977881,126.6,126.51,170.96454445]
[1769532145524,65.16977881,126.6,126.52,60.5624158]
[1769532147924,61.42979791,126.63,126.53,60.5624158]
[1769532148222,61.42979791,126.63,126.54,60.5624158]
[1769532148422,61.42979791,126.63,126.57,7.1181]
[1769532149422,61.42979791,126.63,126.56,7.1186]
[1769532149623,61.42979791,126.63,126.53,171.3185158]
[1769532149624,61.42979791,126.63,126.53,60.5624158]
[1769532149923,68.54509791,126.63,126.55,7.1192]
[1769532150731,68.54509791,126.62,126.55,7.1192]
[1769532153129,68.54509791,126.62,126.55,60.5624158]
[1769532153130,61.42979791,126.62,126.55,60.5624158]
[1769532153324,61.42979791,126.67,126.56,60.5624158]
[1769532154927,61.42979791,126.64,126.58,7.1175]
[1769532159726,61.42979791,126.64,126.59,7.1168]
[1769532160332,61.42979791,126.64,126.6,7.1164]
[1769532160931,61.42979791,126.62,126.48,60.5624158]
[1769532161136,61.42979791,126.62,126.32,177.0]
[1769532161137,61.42979791,126.54,126.43,60.5624158]
[1769532161435,61.42979791,126.49,126.37,60.5624158]
[1769532161635,61.42979791,126.46,126.37,60.5624158]
[1769532162030,61.42979791,126.46,126.37,171.4617158]
[1769532162430,61.42979791,126.46,126.36,110.9067]
[1769532162631,61.42979791,126.46,126.37,171.4590158]
[1769532163334,61.42979791,126.46,126.37,67.6914158]
[1769532164736,61.42979791,126.46,126.38,7.1286]
[1769532166235,61.42979791,126.46,126.39,7.1279]
[1769532168444,61.42979791,126.46,126.37,67.6917158]
[1769532168946,61.42979791,126.46,126.37,60.5624158]
[1769532169945,61.42979791,126.46,126.38,7.1286]
[1769532171848,61.42979791,126.46,126.39,7.128]
[1769532175148,61.42979791,126.46,126.4,7.1275]
[1769532177547,61.42979791,126.46,126.37,165.05245731]
[1769532178646,61.42979791,126.46,126.4,7.1276]
[1769532179743,68.55419791,126.46,126.38,61.28265731]
[1769532180140,68.55419791,126.46,126.38,54.15435731]
[1769532180343,7.125,126.45,126.38,54.15435731]
[1769532180548,56.92579445,126.44,126.35,165.07125731]
[1769532180745,56.92579445,126.44,126.36,54.15435731]
[1769532181046,56.92579445,126.44,126.38,7.1286]
[1769532182559,56.92579445,126.44,126.39,7.1281]
[1769532183248,56.92579445,126.49,126.4,7.1276]
[1769532184243,56.92579445,126.46,126.41,7.1271]
[1769532184556,56.92579445,126.54,126.43,54.15435731]
[1769532184757,56.92579445,126.54,126.46,54.15435731]
[1769532184941,64.04559445,126.54,126.47,7.1236]
[1769532185551,56.92579445,126.54,126.48,7.1231]
[1769532190860,56.92579445,126.54,126.46,61.27815731]
[1769532191354,56.92579445,126.54,126.46,54.15435731]
[1769532192062,56.92579445,126.54,126.48,7.1231]
[1769532193648,56.92579445,126.54,126.49,7.1226]
[1769532197661,56.92579445,126.54,126.47,7.1232]
[1769532198358,56.92579445,126.54,126.48,7.1231]
[1769532198554,398.3713,126.59,126.47,54.15435731]
[1769532198866,56.92579445,126.58,126.51,54.15435731]
[1769532199056,56.92579445,126.58,126.53,7.1202]
[1769532199561,56.92579445,126.58,126.51,54.15435731]
[1769532200361,56.92579445,126.58,126.5,7.1215]
[1769532201869,64.04449445,126.56,126.5,7.1215]
[1769532205868,52.34845938,126.59,126.5,55.00009126]
[1769532206978,59.46585938,126.59,126.53,7.1203]
[1769532208582,52.34845938,126.59,126.51,55.00009126]
[1769532209980,52.34845938,126.59,126.53,7.1198]
[1769532210980,52.34845938,126.59,126.54,7.1195]
[1769532212480,7.1164,126.6,126.54,62.11959126]
[1769532212677,7.1159,126.61,126.54,62.11959126]
[1769532212880,59.46435938,126.61,126.54,62.11959126]
[1769532213384,59.46485938,126.6,126.54,62.11959126]
[1769532214279,59.46485938,126.6,126.54,7.1195]
[1769532215680,59.46485938,126.6,126.54,8.98595006]
[1769532216683,52.34845938,126.6,126.55,7.1191]
[1769532216990,52.34845938,126.62,126.56,1.86645006]
[1769532217989,52.34845938,126.62,126.56,56.86654132]
[1769532218283,53.72357298,126.64,126.56,56.86654132]
[1769532218476,7.1155,126.62,126.56,63.98464132]
[1769532218680,7.1155,126.62,126.56,56.86654132]
[1769532218876,52.34845938,126.62,126.56,1.86645006]
[1769532219077,52.34845938,126.6,126.53,1.86645006]
[1769532219280,52.34845938,126.6,126.52,55.00009126]
[1769532219281,52.34845938,126.6,126.55,1.86645006]
[1769532219689,52.34845938,126.6,126.53,55.00009126]
[1769532220580,52.34845938,126.6,126.55,7.1187]
[1769532223489,52.34845938,126.6,126.54,7.1198]
[1769532223691,59.46485938,126.6,126.54,7.1198]
[1769532224386,52.34845938,126.6,126.55,7.1191]
[1769532225284,52.34845938,126.6,126.54,55.00009126]
[1769532225481,52.34845938,126.6,126.53,7.1198]
[1769532226885,59.46495938,126.6,126.54,7.1198]
[1769532227291,52.34845938,126.6,126.55,7.1192]
[1769532227887,59.46435938,126.62,126.55,62.11929126]
[1769532228082,52.34845938,126.67,126.6,165.69519126]
[1769532228393,52.34845938,126.67,126.6,55.00009126]
[1769532229093,52.34845938,126.67,126.62,7.1153]
[1769532231683,52.34845938,126.67,126.63,7.1145]
[1769532232993,52.34845938,126.67,126.61,7.1153]
[1769532240198,59.46095938,126.67,126.61,7.1153]
[1769532240803,51.42955123,126.63,126.55,50.23077756]
[1769532241108,51.42955123,126.63,126.55,160.97257756]
[1769532241602,1.86634983,126.61,126.58,7.1175]
[1769532241808,1.86634983,126.61,126.55,160.97257756]
[1769532242203,1.86634983,126.61,126.57,7.1181]
[1769532243408,58.54435123,126.63,126.57,7.1181]
[1769532243607,1.86634983,126.61,126.57,7.1181]
[1769532244717,51.42955123,126.62,126.57,7.1181]
[1769532244913,51.42955123,126.62,126.53,50.23077756]
[1769532244914,51.42955123,126.6,126.53,50.23077756]
[1769532245210,1.86634983,126.59,126.53,50.23077756]
[1769532246305,1.86634983,126.57,126.53,7.12]
[1769532246708,51.42955123,126.58,126.53,7.12]
[1769532247806,1.86634983,126.57,126.52,7.1209]
[1769532248308,51.42955123,126.62,126.54,50.23077756]
[1769532248509,51.42955123,126.62,126.53,112.62504983]
[1769532248510,51.42955123,126.62,126.55,52.09712739]
[1769532250010,51.42955123,126.62,126.57,7.1181]
[1769532255516,51.42955123,126.62,126.55,57.34957756]
[1769532255711,51.42955123,126.6,126.51,50.23077756]
[1769532255914,51.42955123,126.58,126.51,52.09667564]
[1769532256612,51.42955123,126.62,126.54,160.98167756]
[1769532256810,51.42955123,126.62,126.55,52.09667564]
[1769532257619,51.42955123,126.62,126.55,50.23077756]
[1769532259018,51.42955123,126.62,126.57,7.118]
[1769532260516,51.42955123,126.62,126.58,7.1174]
[1769532260718,51.42955123,126.62,126.52,165.2600276]
[1769532260918,51.42955123,126.62,126.53,54.4930276]
[1769532261408,51.42955123,126.62,126.56,7.1186]
[1769532261612,51.42955123,126.62,126.55,54.4930276]
[1769532263718,51.42955123,126.62,126.56,7.1186]
[1769532269822,58.54495123,126.62,126.55,61.6122276]
[1769532273322,58.54495123,126.62,126.55,7.1192]
[1769532274123,53.51342112,126.59,126.51,53.26389504]
[1769532274524,53.51342112,126.59,126.52,53.26389504]
[1769532274826,53.51342112,126.61,126.55,60.38259504]
[1769532275628,53.51342112,126.61,126.56,7.1184]
[1769532277629,53.51342112,126.64,126.56,53.26389504]
[1769532278123,53.51342112,126.66,126.59,53.26389504]
[1769532278322,53.51342112,126.7,126.61,53.26389504]
[1769532279432,60.62432112,126.7,126.63,7.1142]
[1769532279727,60.62432112,126.7,126.61,53.26389504]
[1769532279728,53.51342112,126.7,126.62,53.26389504]
[1769532280021,53.51342112,126.7,126.65,7.1135]
[1769532280227,53.51342112,126.74,126.65,53.26389504]
[1769532280819,53.51342112,126.74,126.66,53.26389504]
[1769532281424,53.51342112,126.74,126.68,53.26389504]
[1769532281631,53.51342112,126.77,126.69,53.26389504]
[1769532281824,53.51342112,126.77,126.7,53.26389504]
[1769532282927,53.51342112,126.77,126.67,168.48241984]
[1769532283134,53.51342112,126.77,126.68,53.26389504]
[1769532284029,53.51342112,126.79,126.7,53.26389504]
[1769532284628,53.51342112,126.79,126.69,7.111]
[1769532285431,53.51342112,126.79,126.7,60.37449504]
[1769532285625,53.51342112,126.79,126.7,53.26389504]
[1769532285818,53.51342112,126.79,126.72,53.26389504]
[1769532286927,53.51342112,126.79,126.69,53.26389504]
[1769532287128,53.51342112,126.78,126.69,53.26389504]
[1769532287434,110.5371,126.79,126.69,53.26389504]
[1769532287435,53.51342112,126.76,126.69,53.26389504]
[1769532288129,60.62112112,126.76,126.67,7.1122]
[1769532288424,53.51342112,126.74,126.66,53.26389504]
[1769532289424,53.51342112,126.72,126.63,53.26389504]
[1769532290722,60.62442112,126.7,126.62,7.1151]
[1769532291323,53.51342112,126.7,126.63,7.1146]
[1769532292034,53.51342112,126.7,126.63,60.37849504]
[1769532293436,53.51342112,126.7,126.63,53.26389504]
[1769532293730,53.51342112,126.7,126.61,7.1155]
[1769532294241,60.62432112,126.7,126.61,60.37939504]
[1769532295435,58.54150665,126.69,126.61,60.37939504]
[1769532295632,51.43000665,126.69,126.59,7.1168]
[1769532295931,56.01223145,126.68,126.57,53.42830022]
[1769532296131,51.43000665,126.65,126.57,53.42830022]
[1769532296534,58.54370665,126.65,126.57,60.54600022]
[1769532296836,58.54370665,126.65,126.55,110.7371]
[1769532296837,51.43000665,126.65,126.55,53.42830022]
[1769532297133,51.43000665,126.68,126.58,53.42830022]
[1769532297741,7.1132,126.66,126.58,60.54570022]
[1769532299635,58.54320665,126.66,126.58,60.54570022]
[1769532300141,51.43000665,126.66,126.59,60.54520022]
[1769532300641,51.43000665,126.66,126.57,7.1176]
[1769532300835,51.43000665,126.66,126.57,60.54590022]
[1769532301139,51.43000665,126.68,126.58,53.42830022]
[1769532301537,51.43000665,126.68,126.6,53.42830022]
[1769532302938,51.43000665,126.68,126.62,7.1152]
[1769532303238,51.43000665,126.7,126.62,53.42830022]
[1769532303641,58.54090665,126.7,126.63,7.1147]
[1769532304644,58.54090665,126.7,126.62,53.42830022]
[1769532305755,58.54090665,126.7,126.63,7.1145]
[1769532306646,58.54090665,126.7,126.62,53.42830022]
[1769532306846,110.5929,126.73,126.62,53.42830022]
[1769532306847,58.54160665,126.69,126.62,53.42830022]
[1769532307449,51.43000665,126.68,126.6,7.1159]
[1769532307753,51.43000665,126.65,126.56,53.42830022]
[1769532308151,58.54410665,126.65,126.56,60.54650022]
[1769532308348,58.54410665,126.65,126.56,53.42830022]
[1769532309355,58.54420665,126.64,126.57,7.1177]
[1769532309851,58.54490665,126.63,126.56,53.42830022]
[1769532310152,58.54490665,126.63,126.55,7.1188]
[1769532310153,51.43000665,126.61,126.5,53.42830022]
[1769532310657,58.54710665,126.59,126.51,7.121]
[1769532311554,58.54710665,126.59,126.48,412.879]
[1769532311555,56.01780668,126.59,126.48,355.50830022]
[1769532311749,56.01780668,126.59,126.49,53.42830022]
[1769532311945,58.54830665,126.57,126.49,60.55070022]
[1769532312351,51.43000665,126.57,126.49,53.42830022]
[1769532312951,51.43000665,126.57,126.5,53.42830022]
[1769532313156,115.27180003,126.62,126.5,53.42830022]
[1769532313157,51.43000665,126.61,126.5,53.42830022]
[1769532313650,51.43000665,126.6,126.52,53.42830022]
[1769532314763,51.43000665,126.6,126.53,7.12]
[1769532315963,58.54660665,126.6,126.52,53.42830022]
[1769532316361,51.43000665,126.6,126.5,58.01610025]